Cogmind - Beta 13 @@@ ROGUE MODE // 2024.04.07 @ 21:34:43 Player: Demo Result: Destroyed by P-80 Master with Gamma Rifle Performance ------------- Evolutions (9) 4500 Regions Visited (21) 4200 Robots Destroyed (99) 495 Value Destroyed (5375) 5375 Prototype IDs (55) 1100 Alien Tech Used (1) 200 Bonus (4144) 4144 TOTAL SCORE: 20014 Bonus ------- Pacifist 200 High Alert Combat Kills 483 Follower Combat Kills 2053 Entered DSFs 500 Network Hubs Disabled 400 Met Data Miner 300 Met Imprinter 300 Was Imprinted 300 Friendly Fire -392 Cogmind --------- Core Integrity 0/1600 Matter 210/300 Energy 19/100 System Corruption 6% Temperature Cool (0) Movement Core (50) Location -1/Command Parts ------- > --- POWER (3) -------- (None) > --- PROPULSION (7) --- (None) > --- UTILITY (11) ----- Advanced Melee Analysis Suite > --- WEAPON (4) ------- (None) > --- INVENTORY (5) ---- Impulse Thruster Advanced Gravity Neutralizer Advanced Thermal Defense Suite Enhanced Nova Cannon Peak State ------------ > --- POWER ------------ Light Ion Engine Light Deuterium Engine Light Quantum Reactor > --- PROPULSION ------- Q-thruster Q-thruster Improved Diametric Drive Impulse Thruster Array Impulse Thruster Array > --- UTILITY ---------- Advanced Cryofiber Web Advanced Heat Sink Compact Battery Energy Well Advanced Gravity Neutralizer Advanced Melee Analysis Suite Stasis Canceller Improved Reaction Control System Experimental Force Field System Shield Improved System Restoration Module > --- WEAPON ----------- Enhanced Quantum Rifle Enhanced Quantum Rifle > --- INVENTORY -------- Impulse Thruster Advanced Gravity Neutralizer Advanced Thermal Defense Suite Enhanced Nova Cannon Micro-nuke Launcher [Rating: 152] Favorites ----------- Power Micro Fission Core Engine Light Ion Engine Power Core Micro Fission Core Reactor Light Antimatter Reactor Propulsion VTOL Module Treads Improved Medium Treads Leg Myomer Leg Hover Unit Linear Gravjet Flight Unit VTOL Module Utility 0b10 Decoder Chip [Looter] Device Improved Cooling System Storage Large Storage Unit Processor 0b10 Decoder Chip [Looter] Hackware Makeshift System Shield Protection Hardened Light Armor Plating Weapon Ripper Energy Gun Plasma Rifle Energy Cannon Heavy Phase Cannon Ballistic Gun Heavy Machine Gun Launcher Micro-nuke Launcher Slashing Weapon Ripper Piercing Weapon Enhanced Force Lance Build | -11 -10 -9 -9 -7 -6 -6 -6 -6 -6 -5 -5 -4 -4 -4 -4 -4 -3 -2 -2 -1 -1 ------- Run | Yrd Mat Mat Min Zio Pro Fac Low Low Dat Pro Fac Fac Ext Cet Arc Hub Res Res DSF Acc Com Slots Evolved 18 | . . 2 . . . 6 . . . . 2 2 . . . . 2 2 . 2 . Power 2 | . . . . . . 1 . . . . 1 . . . . . . . . . . Propulsion 5 | . . 2 . . . . . . . . . 1 . . . . . 1 . 1 . Utility 9 | . . . . . . 4 . . . . 1 1 . . . . 1 1 . 1 . Weapon 2 | . . . . . . 1 . . . . . . . . . . 1 . . . . Parts Attached 298 | 2 3 6 . 8 8 21 1 1 . 30 29 14 22 4 7 9 69 6 3 32 23 Power 40 | . . . . . 1 3 . . . 3 4 4 1 1 1 . 9 1 . 5 7 Engine 9 | . . . . . 1 . . . . 1 1 . . . . . 3 1 . 1 1 Core 9 | . . . . . . 3 . . . 2 3 1 . . . . . . . . . Reactor 22 | . . . . . . . . . . . . 3 1 1 1 . 6 . . 4 6 Propulsion 103 | 2 3 3 . 3 7 11 1 . . 8 8 1 7 . 3 3 30 1 1 8 3 Treads 22 | 2 . . . . 5 4 . . . 3 . . . . . . 7 . 1 . . Leg 40 | . . . . 2 . . . . . 3 8 1 7 . 3 2 14 . . . . Wheel . | . . . . . . . . . . . . . . . . . . . . . . Hover 7 | . . . . . . 1 . . . 1 . . . . . . 4 . . 1 . Flight 34 | . 3 3 . 1 2 6 1 . . 1 . . . . . 1 5 1 . 7 3 Utility 85 | . . 3 . 3 . 6 . 1 . 8 10 5 4 2 . 5 15 2 2 10 9 Device 48 | . . . . . . 3 . 1 . 3 7 3 3 1 . 4 8 2 . 6 7 Storage 10 | . . . . . . . . . . 1 2 1 . . . . 2 . 1 2 1 Processor 11 | . . . . 3 . 3 . . . . . . . . . . 4 . . 1 . Hackware 4 | . . . . . . . . . . 1 1 . . . . . . . 1 . 1 Protection 12 | . . 3 . . . . . . . 3 . 1 1 1 . 1 1 . . 1 . Artifact . | . . . . . . . . . . . . . . . . . . . . . . Weapon 70 | . . . . 2 . 1 . . . 11 7 4 10 1 3 1 15 2 . 9 4 Energy Gun 46 | . . . . . . . . . . 5 5 1 9 1 3 . 12 1 . 7 2 Energy Cannon 10 | . . . . . . . . . . 4 1 2 1 . . 1 . . . 1 . Ballistic Gun 5 | . . . . . . . . . . 1 . . . . . . 3 . . 1 . Ballistic Cannon . | . . . . . . . . . . . . . . . . . . . . . . Launcher 1 | . . . . . . . . . . . . . . . . . . . . . 1 Special Weapon . | . . . . . . . . . . . . . . . . . . . . . . Impact Weapon . | . . . . . . . . . . . . . . . . . . . . . . Slashing Weapon 7 | . . . . 2 . 1 . . . 1 1 1 . . . . . 1 . . . Piercing Weapon 1 | . . . . . . . . . . . . . . . . . . . . . 1 Special Melee Weapon . | . . . . . . . . . . . . . . . . . . . . . . Unidentified Prototypes 26 | . . . . . . 1 1 . . 3 2 3 . 2 . . 8 . . 3 3 Corrupted Parts 7 | . . . . . 3 . . . . 4 . . . . . . . . . . . System Corruption 37 | . . . . . 18 . . . . 19 . . . . . . . . . . . Parts Lost 137 | . . 1 . . 4 2 10 . . 9 9 1 . 1 . 23 41 . 7 8 21 Power 22 | . . . . . . . 1 . . 1 3 1 . 1 . 3 7 . . 1 4 Propulsion 44 | . . 1 . . 4 2 4 . . 3 1 . . . . 8 13 . 2 1 5 Utility 39 | . . . . . . . 3 . . 2 2 . . . . 8 9 . 4 2 9 Weapon 32 | . . . . . . . 2 . . 3 3 . . . . 4 12 . 1 4 3 Highest Loss Streak 22 | . . 1 . . 4 2 10 . . 4 4 1 . 1 . 22 13 . 7 5 18 To Critical Strikes 2 | . . . . . . . . . . . . . . . . 1 . . . . 1 Average Slot Usage (%) 79 | . 28 31 33 77 70 89 67 39 40 87 95 99 100 99 100 84 57 42 18 47 67 Engine 1 | . . . . . 1 6 3 . . 1 1 . . . . . . . . . 4 Core 2 | . . . . . . 3 . . . 6 10 9 . . . . . . . . . Reactor 3 | . . . . . . . . . . . . 5 14 14 15 10 3 . . 3 4 Treads 5 | . 18 . . . 21 20 . . . 7 . . . . . . 7 . 1 . . Leg 12 | . . . . 4 . . . . . 13 21 26 26 26 26 22 9 . . . . Flight 7 | . 9 23 22 32 2 3 13 6 6 . . . . . . . . 12 4 15 19 Device 12 | . . . . . . 7 8 5 6 12 20 24 25 26 26 21 6 7 2 8 21 Storage 2 | . . . . . . . . . . . 3 5 5 5 5 4 4 4 2 5 5 Processor 13 | . . . . 16 22 25 23 20 20 16 11 10 10 10 10 8 10 13 4 3 4 Protection 1 | . . 7 11 5 . . . . . 2 . 1 . . . . 1 . . . . Energy Gun 5 | . . . . . . . . . . 4 7 10 14 10 10 8 7 . . 9 5 Energy Cannon 1 | . . . . . . . . . . 4 7 4 . 5 5 4 . . . . . Slashing Weapon 6 | . . . . 18 22 19 13 6 6 6 . . . . . . . 3 2 . . Naked Turns 41 | . 1 . . . . . . . . . . . . . . 24 3 . 13 . . Heaviest Build 101 | . . 10 5 12 17 27 21 4 4 34 73 75 86 97 101 101 65 17 17 70 70 Greatest Support 116 | 3 8 12 8 15 30 30 24 4 4 56 74 76 106 106 111 116 115 21 75 55 71 Greatest Overweight (x) 4 | . . . . 2 2 2 1 . . 1 1 . 1 . . 1 4 . . 1 1 Average Overweight (x) . | . . . . . 1 . . . . . . . . . . . . . . . . Largest Inventory Capacity 15 | 5 5 5 5 5 5 5 5 5 5 5 15 15 15 15 15 15 10 10 10 5 5 Average Capacity 8 | 5 5 5 5 5 5 5 5 5 5 5 11 15 15 15 15 14 7 10 7 5 5 Most Carried 15 | . 2 4 2 5 5 5 5 5 5 5 15 15 15 15 15 15 10 10 10 5 5 Average Carried 8 | . . 2 2 4 5 4 5 5 5 4 11 14 14 14 15 13 6 7 7 4 4 Final Capacity 15 | 5 5 5 5 5 5 5 5 5 5 5 15 15 15 15 15 5 10 10 5 5 5 Final Carried 15 | . 2 2 2 5 5 5 5 5 5 5 15 15 15 15 15 5 7 10 5 2 4 Class Distribution -------------------- 18% | Derelict-Gladiator 18% | Scavenger-Tank 13% | Scavenger-Mutant 11% | Mutant 8% | Scavenger-Gunner 7% | Commander-Tank 4% | Sprinter 4% | Scavenger-Sprinter Dominant Class ---------------- Mutant | -10/Materials Sprinter | -9/Materials Sprinter | -9/Mines Derelict-Gladiator | -7/Zion Derelict-Gladiator | -6/Proximity Caves Derelict-Gladiator | -6/Factory Derelict-Sprinter | -6/Lower Caves Derelict-Mutant | -6/Lower Caves Derelict-Mutant | -6/Data Miner Scavenger-Mutant | -5/Proximity Caves Scavenger-Tank | -5/Factory Scavenger-Gunner | -4/Factory Commander-Tank | -4/Extension Scavenger-Tank | -4/Cetus Scavenger-Tank | -4/Archives Scavenger-Tank | -4/Hub_04(d) Mutant | -3/Research Scavenger-Sprinter | -2/Research Mutant | -2/DSF Sprinter | -1/Access Scavenger-Sprinter | -1/Command Resources | -11 -10 -9 -9 -7 -6 -6 -6 -6 -6 -5 -5 -4 -4 -4 -4 -4 -3 -2 -2 -1 -1 ----------- Run | Yrd Mat Mat Min Zio Pro Fac Low Low Dat Pro Fac Fac Ext Cet Arc Hub Res Res DSF Acc Com Matter Collected 3107 | 39 . . . 178 244 170 30 10 . 380 417 134 211 45 70 5 587 102 . 390 95 Remotely 30 | . . . . . . . . . . . . . . . . . 30 . . . . Salvage Created 6029 | . . . . 65 221 188 79 . . 549 1318 148 719 290 169 384 1709 102 . 59 29 Parts 259 | . . . . . 16 15 5 . . 23 42 1 32 12 7 15 75 9 . 2 5 Haulers Intercepted . | . . . . . . . . . . . . . . . . . . . . . . Recyclers Shooed 9 | . . . . . . . . . . . 2 . . . . . 5 . . . 2 Parts Field Recycled . | . . . . . . . . . . . . . . . . . . . . . . Retrieved Matter . | . . . . . . . . . . . . . . . . . . . . . . Parts Self-Destructed 30 | . . . . 1 13 . 2 . . 14 . . . . . . . . . . . Prevented 9 | . . . . . 3 . . 2 . 4 . . . . . . . . . . . Kills | -11 -10 -9 -9 -7 -6 -6 -6 -6 -6 -5 -5 -4 -4 -4 -4 -4 -3 -2 -2 -1 -1 ------- Run | Yrd Mat Mat Min Zio Pro Fac Low Low Dat Pro Fac Fac Ext Cet Arc Hub Res Res DSF Acc Com Combat Hostiles Destroyed 78 | . . . . . 4 5 1 . . 9 18 . 11 4 2 5 18 . . 1 . Melee 11 | . . . . . 4 5 1 . . 1 . . . . . . . . . . . Guns 38 | . . . . . . . . . . 3 1 . 11 1 1 4 16 . . 1 . Cannons 21 | . . . . . . . . . . 5 14 . . 2 . . . . . . . AOE 1 | . . . . . . . . . . . . . . . . 1 . . . . . Classes Destroyed 19 | . . . . . 4 2 2 . . 3 3 . . . . 1 2 1 . . 1 Worker 7 | . . . . . . . . . . . 1 . . . . 1 3 2 . . . Builder 4 | . . . . . . . . . . . 1 . . . . 2 1 . . . . Recycler 5 | . . . . . . . . . . . 1 1 . . . . 3 . . . . Minesweeper 1 | . . . . . . . . . . 1 . . . . . . . . . . . Mechanic 1 | . . . . . . . . . . . . . . . . . . 1 . . . Operator 1 | . . . . . . . . . . . . . . . . . . . . . 1 Drone 1 | . . . . . . . . . . . . . . . . 1 . . . . . Watcher 3 | . . . . . . . . . . . 1 . . . . 1 1 . . . . Swarmer 11 | . . . . . . 3 1 . . 5 . . 2 . . . . . . . . Saboteur 1 | . . . . . . . . . . . . . . . . . 1 . . . . Grunt 24 | . . . . . . . . . . 1 11 . 2 1 . . 8 . . 1 . Duelist 1 | . . . . . . . . . . . . . . . . . 1 . . . . Sentry 13 | . . . . . . 1 . . . 1 3 . 5 . 2 1 . . . . . Specialist 2 | . . . . . . . . . . . 2 . . . . . . . . . . Hunter 6 | . . . . . 1 . . . . 1 . . 1 . . 1 2 . . . . Programmer 12 | . . . . . 1 1 . . . . 2 . . . . 2 6 . . . . Behemoth 3 | . . . . . 1 . . . . 1 . . 1 . . . . . . . . Cetus Guard 3 | . . . . . . . . . . . . . . 3 . . . . . . . Decomposer 1 | . . . . . . . 1 . . . . . . . . . . . . . . Packrat 1 | . . . . . . . . . . 1 . . . . . . . . . . . Samaritan 1 | . . . . . . . 1 . . . . . . . . . . . . . . Mutant 1 | . . . . . 1 . . . . . . . . . . . . . . . . Best Kill Streak 6 | . . . . . 1 4 1 . . 6 5 1 3 3 1 4 5 2 . 1 1 Combat Bots Only 6 | . . . . . 1 4 1 . . 6 5 . 3 3 1 1 4 . . 1 . Max Kills in Single Turn 3 | . . . . . 1 1 1 . . 1 1 1 1 1 1 3 2 1 . 1 1 Gunslinging . | . . . . . . . . . . . . . . . . . . . . . . Exploded 1 | . . . . . . . . . . . . . . . . 1 . . . . . Melee 1 | . . . . . 1 1 1 . . 1 . . . . . . . . . . . Uniques/NPCs Destroyed . | . . . . . . . . . . . . . . . . . . . . . . Combat | -11 -10 -9 -9 -7 -6 -6 -6 -6 -6 -5 -5 -4 -4 -4 -4 -4 -3 -2 -2 -1 -1 -------- Run | Yrd Mat Mat Min Zio Pro Fac Low Low Dat Pro Fac Fac Ext Cet Arc Hub Res Res DSF Acc Com Hostile Shots Fired 1771 | . 17 32 . . 49 45 50 5 . 124 116 . 25 34 18 220 491 . 108 143 294 Missed 655 | . 7 19 . . 13 13 22 3 . 29 30 . 11 11 7 64 165 . 38 83 140 Damage Taken 21325 | . 80 124 . . 686 343 457 29 . 1852 1428 115 234 386 198 3599 6282 . 1411 1046 3055 Core 5427 | . 39 46 . . 335 45 66 29 . 426 350 . 70 42 . 920 935 . 509 106 1509 Absorbed by Shields 1547 | . . . . . . . . . . . 235 . 72 138 73 223 . . . . 806 Redirected to Shielding 71 | . . . . . . . . . . . . . . . . . 71 . . . . Ignored by Resistances 911 | . . . . . . . . . . 188 60 . 60 58 70 278 171 . . 26 . Core Remaining (%) 48 | 100 84 . . . 4 . . . . 33 65 . . . . 10 28 . 64 . . Volleys Fired 276 | . . . . . . . . . . 25 64 9 24 13 10 31 80 . . 11 9 Largest 4 | . . . . . . . . . . 2 3 3 3 3 3 3 4 . . 3 2 Hottest 300 | . . . . . . . . . . 188 263 234 237 252 251 289 300 . . 247 130 Shots Fired 640 | . . . . . . . . . . 52 126 25 72 39 25 91 177 . . 16 17 Gun 476 | . . . . . . . . . . 31 54 17 70 26 15 55 177 . . 14 17 Cannon 164 | . . . . . . . . . . 21 72 8 2 13 10 36 . . . 2 . Launcher . | . . . . . . . . . . . . . . . . . . . . . . Special . | . . . . . . . . . . . . . . . . . . . . . . Kinetic 40 | . . . . . . . . . . 10 . . . . . . 30 . . . . Thermal 530 | . . . . . . . . . . 27 113 22 70 39 25 91 114 . . 16 13 Explosive . | . . . . . . . . . . . . . . . . . . . . . . Electromagnetic 51 | . . . . . . . . . . 15 13 3 2 . . . 14 . . . 4 Phasic 19 | . . . . . . . . . . . . . . . . . 19 . . . . Robot Hit Streak 33 | . . . . . . . . . . 5 20 1 10 6 5 7 33 . . 14 15 Robot Miss Streak 7 | . . . . . . . . . . 4 4 4 5 7 2 3 4 . . . 4 Penetration Max 1 | . . . . . . . . . . . . . . . . . 1 . . . . Secondary Targets 7 | . . . . . . . . . . . . . 2 . . . 5 . . . . Max Gunslinging Chain 1 | . . . . . . . . . . . . . 1 . . . 1 . . . . Shots Hit Robots 423 | . . . . 3 11 9 4 . . 40 84 1 51 17 14 46 127 3 3 2 8 Core Hits 215 | . . . . . 6 6 3 . . 20 51 1 28 11 5 19 59 3 . 1 2 Critical Kills 2 | . . . . . . . . . . . 1 . . 1 . . . . . . . Critical Parts Destroyed 2 | . . . . . . . . . . . . . . . . . 2 . . . . Critical Strikes 20 | . . . . . 2 . . . . 3 2 . 3 3 1 . 5 . 1 . . Burn 10 | . . . . . . . . . . . 1 . 3 2 1 . 3 . . . . Meltdown 2 | . . . . . . . . . . . 1 . . 1 . . . . . . . Destroy 2 | . . . . . . . . . . . . . . . . . 2 . . . . Sever 6 | . . . . . 2 . . . . 3 . . . . . . . . 1 . . Melee Attacks 127 | . . . . 38 13 22 14 . 4 13 8 2 . . . . . 6 7 . . Impact . | . . . . . . . . . . . . . . . . . . . . . . Slashing 127 | . . . . 38 13 22 14 . 4 13 8 2 . . . . . 6 7 . . Piercing . | . . . . . . . . . . . . . . . . . . . . . . Sneak Attacks 5 | . . . . . . . 2 . . . . . . . . . . 3 . . . Combat Hostiles . | . . . . . . . . . . . . . . . . . . . . . . Follow-up Attacks 7 | . . . . 1 2 3 . . . 1 . . . . . . . . . . . Damage Inflicted 14530 | . . . . 253 449 361 288 . . 1225 2621 31 1319 676 494 2387 3708 292 129 61 236 Guns 7936 | . . . . . . . . . . 367 771 . 1272 402 248 905 3674 . . 61 236 Cannons 3504 | . . . . . . . . . . 420 1637 31 35 274 246 861 . . . . . Explosions 832 | . . . . . . . . . . . 211 . . . . 621 . . . . . Melee 2202 | . . . . 253 449 361 281 . . 438 . . . . . . . 292 128 . . Ramming 56 | . . . . . . . 7 . . . 2 . 12 . . . 34 . 1 . . Kinetic 583 | . . . . . . . . . . 102 . . . . . . 481 . . . . Thermal 9794 | . . . . . . . . . . 466 2319 31 1272 676 494 1766 2553 . . 61 156 Explosive 211 | . . . . . . . . . . . 211 . . . . . . . . . . Electromagnetic 1228 | . . . . . . . . . . 219 89 . 35 . . 621 184 . . . 80 Impact . | . . . . . . . . . . . . . . . . . . . . . . Slashing 2202 | . . . . 253 449 361 281 . . 438 . . . . . . . 292 128 . . Piercing . | . . . . . . . . . . . . . . . . . . . . . . Phasic 456 | . . . . . . . . . . . . . . . . . 456 . . . . Highest Corruption 49 | . . 1 1 1 20 . . . . 20 1 . . . . 49 15 . 3 6 7 Average Corruption 7 | . . 1 1 1 10 . . . . 10 1 . . . . 14 6 . 3 3 5 Corruption Purged 4 | . . . . . . . . . . . . . . . . . . . . . 4 Corruption Blocked 12 | . . . . . . . . . . . . . . . . . 12 . . . . Effects 76 | . . . . . 9 . . . . 32 9 . . . . 12 3 . 1 5 5 Message Errors 16 | . . . . . . . . . . 7 2 . . . . 4 . . . 3 . Matter Fused 16 | . . . . . 2 . . . . 8 2 . . . . . 1 . . 1 2 Heat Flow Errors 7 | . . . . . 2 . . . . 1 1 . . . . . 1 . 1 1 . Energy Discharges 14 | . . . . . 2 . . . . 7 1 . . . . 2 1 . . . 1 Parts Fused 1 | . . . . . . . . . . 1 . . . . . . . . . . . Data Loss (minor) 7 | . . . . . 2 . . . . 4 . . . . . 1 . . . . . Data Loss (major) 3 | . . . . . . . . . . 1 1 . . . . . . . . . 1 Misfires 3 | . . . . . . . . . . 2 . . . . . 1 . . . . . Alerts 1 | . . . . . . . . . . 1 . . . . . . . . . . . Misdirections 4 | . . . . . 1 . . . . . . . . . . 3 . . . . . Weapon Failures 4 | . . . . . . . . . . . 2 . . . . 1 . . . . 1 Overload Shots . | . . . . . . . . . . . . . . . . . . . . . . Overflow Damage 224 | . . . . 100 . . 22 . . 39 5 . . . . 58 . . . . . Projectiles 44 | . . . . . . . . . . 39 5 . . . . . . . . . . Explosions 58 | . . . . . . . . . . . . . . . . 58 . . . . . Melee 122 | . . . . 100 . . 22 . . . . . . . . . . . . . . Knockbacks . | . . . . . . . . . . . . . . . . . . . . . . Impact . | . . . . . . . . . . . . . . . . . . . . . . Kinetic . | . . . . . . . . . . . . . . . . . . . . . . Secondary . | . . . . . . . . . . . . . . . . . . . . . . Self-Inflicted Damage 113 | . . . . . . . 3 . . . . . . . . 110 . . . . . Shots 2 | . . . . . . . . . . . . . . . . 2 . . . . . Rammed 16 | . . . . . . . 2 . . . . . . . . . 10 . 4 . . Targets Rammed 24 | . . . . . . . 2 . . . 1 . 1 . . . 16 . 4 . . Kicked 8 | . . . . . . . . . . . 1 . 1 . . . 6 . . . . Crushed . | . . . . . . . . . . . . . . . . . . . . . . Highest Temperature 619 | . . . . . 246 . . . . 401 619 . . 106 116 284 480 . 39 242 34 Average Temperature 178 | . . . . . 146 . . . . 150 314 . . 57 51 145 163 . 39 59 10 Received Heat Transfer 2133 | . . 39 . . 57 48 54 . . 482 394 . 33 81 24 81 697 . . 45 98 Effects 31 | . . . . . . . . . . 2 25 . . . . . 4 . . . . Shutdowns 4 | . . . . . . . . . . . 3 . . . . . 1 . . . . Energy Bleed 2 | . . . . . . . . . . . 1 . . . . . 1 . . . . Interference 12 | . . . . . . . . . . 1 9 . . . . . 2 . . . . Matter Decay 3 | . . . . . . . . . . . 3 . . . . . . . . . . Short Circuit 5 | . . . . . . . . . . 1 4 . . . . . . . . . . Damage (minor) 3 | . . . . . . . . . . . 3 . . . . . . . . . . Damage (core) 2 | . . . . . . . . . . . 2 . . . . . . . . . . Siege Activations . | . . . . . . . . . . . . . . . . . . . . . . Robots Corrupted 1 | . . . . . . . . . . . . . . . . . 1 . . . . Combat Hostiles 1 | . . . . . . . . . . . . . . . . . 1 . . . . Parts Fried 7 | . . . . . . . . . . 1 . . . . . 5 1 . . . . Impact Corruptions . | . . . . . . . . . . . . . . . . . . . . . . Robots Melted 6 | . . . . . . . . . . . 3 . . 1 1 . 1 . . . . Combat Hostiles 6 | . . . . . . . . . . . 3 . . 1 1 . 1 . . . . Parts Melted 53 | . . . . . 1 . . . . 2 15 1 8 . . 7 19 . . . . Heat Transferred 14689 | . . . . . . . . . . 698 3167 50 2723 1073 703 1718 4298 . . 74 185 Parts Sabotaged . | . . . . . . . . . . . . . . . . . . . . . . Parts Stolen . | . . . . . . . . . . . . . . . . . . . . . . Parts Stripped . | . . . . . . . . . . . . . . . . . . . . . . Power Chain Reactions . | . . . . . . . . . . . . . . . . . . . . . . Alert | -11 -10 -9 -9 -7 -6 -6 -6 -6 -6 -5 -5 -4 -4 -4 -4 -4 -3 -2 -2 -1 -1 ------- Run | Yrd Mat Mat Min Zio Pro Fac Low Low Dat Pro Fac Fac Ext Cet Arc Hub Res Res DSF Acc Com Peak Influence 920 | . 30 100 39 . . 795 . . . . 395 200 872 920 519 847 432 242 181 684 829 Initial 650 | . . 12 39 . . 650 . . . . 2 152 98 488 368 181 372 216 181 75 431 Average 379 | . 12 39 39 . . 719 . . . . 185 171 419 828 496 421 373 225 150 317 572 Maximum Alert Level 3 | . . . . . . 3 . . . . 1 1 3 3 2 3 2 1 . 2 3 Low Security (%) 23 | 100 100 100 100 . . . . . . . 60 88 10 . . 11 1 . 100 31 . Level 1 40 | . . . . . . . . . . . 39 11 47 . 11 60 73 100 . 38 . Level 2 23 | . . . . . . 34 . . . . . . 29 18 88 1 25 . . 29 79 Level 3 12 | . . . . . . 65 . . . . . . 12 81 . 26 . . . . 20 Level 4 . | . . . . . . . . . . . . . . . . . . . . . . Level 5 . | . . . . . . . . . . . . . . . . . . . . . . High Security . | . . . . . . . . . . . . . . . . . . . . . . Max Security . | . . . . . . . . . . . . . . . . . . . . . . Squads Dispatched 24 | . 1 1 . . . 1 . . . . 7 1 1 . . 4 5 . 1 1 1 Investigation 5 | . . 1 . . . . . . . . 3 . . . . . . . . 1 . Extermination 9 | . . . . . . 1 . . . . 2 1 . . . 2 3 . . . . Reinforcement 8 | . 1 . . . . . . . . . 2 . 1 . . 1 1 . 1 . 1 Assault 2 | . . . . . . . . . . . . . . . . 1 1 . . . . Garrison . | . . . . . . . . . . . . . . . . . . . . . . Intercept . | . . . . . . . . . . . . . . . . . . . . . . Searches Triggered 1 | . . . . . . 1 . . . . . . . . . . . . . . . Construction Impeded 2 | . . . . . . . . . . . . . . . . 1 1 . . . . Haulers Reinforced . | . . . . . . . . . . . . . . . . . . . . . . Active Scanning Responses . | . . . . . . . . . . . . . . . . . . . . . . Cargo Convoy Interrupts . | . . . . . . . . . . . . . . . . . . . . . . Stealth | -11 -10 -9 -9 -7 -6 -6 -6 -6 -6 -5 -5 -4 -4 -4 -4 -4 -3 -2 -2 -1 -1 --------- Run | Yrd Mat Mat Min Zio Pro Fac Low Low Dat Pro Fac Fac Ext Cet Arc Hub Res Res DSF Acc Com Distress Signals 12 | . . . . . . 1 . . . . . . 4 1 . 1 1 . . 4 . Communications Jammed . | . . . . . . . . . . . . . . . . . . . . . . Distress Signals . | . . . . . . . . . . . . . . . . . . . . . . Times Spotted 295 | . 8 10 . 1 8 7 10 6 . 12 19 2 32 12 4 30 48 . 6 36 44 Peak Tracking Total 23 | . 4 11 . 1 3 4 9 6 . 6 4 1 5 7 2 22 12 . 5 17 23 Tactical Retreats 25 | . 1 1 . . . . 2 . . 2 . . 1 . . 2 4 . 1 5 6 Traps | -11 -10 -9 -9 -7 -6 -6 -6 -6 -6 -5 -5 -4 -4 -4 -4 -4 -3 -2 -2 -1 -1 ------- Run | Yrd Mat Mat Min Zio Pro Fac Low Low Dat Pro Fac Fac Ext Cet Arc Hub Res Res DSF Acc Com Traps Triggered 20 | . 1 . . . . . . . . 1 1 . 2 . . 3 2 . . 1 9 Indirectly 1 | . . . . . . . . . . . . . . . . 1 . . . . . Trap Hack Attempts . | . . . . . . . . . . . . . . . . . . . . . . Triggered . | . . . . . . . . . . . . . . . . . . . . . . Disarmed . | . . . . . . . . . . . . . . . . . . . . . . Reprogrammed . | . . . . . . . . . . . . . . . . . . . . . . Reused . | . . . . . . . . . . . . . . . . . . . . . . Traps Extracted . | . . . . . . . . . . . . . . . . . . . . . . Installed . | . . . . . . . . . . . . . . . . . . . . . . Triggered 1 | . . . . . . . . 1 . . . . . . . . . . . . . Machines | -11 -10 -9 -9 -7 -6 -6 -6 -6 -6 -5 -5 -4 -4 -4 -4 -4 -3 -2 -2 -1 -1 ---------- Run | Yrd Mat Mat Min Zio Pro Fac Low Low Dat Pro Fac Fac Ext Cet Arc Hub Res Res DSF Acc Com Machines Disabled 33 | . . . . . . . 1 . . . 9 1 . 1 1 15 1 . . 2 2 Max in Single Turn 8 | . . . . . . . 1 . . . 6 1 . . 1 8 . . . 1 1 Garrison Access 1 | . . . . . . . . . . . . . . . . 1 . . . . . Network Hub 2 | . . . . . . . . . . . . . . . . 2 . . . . . Machines Repaired . | . . . . . . . . . . . . . . . . . . . . . . Machines Dismantled . | . . . . . . . . . . . . . . . . . . . . . . Machines Sabotaged . | . . . . . . . . . . . . . . . . . . . . . . Overloaded Fab Kills . | . . . . . . . . . . . . . . . . . . . . . . Hacking | -11 -10 -9 -9 -7 -6 -6 -6 -6 -6 -5 -5 -4 -4 -4 -4 -4 -3 -2 -2 -1 -1 --------- Run | Yrd Mat Mat Min Zio Pro Fac Low Low Dat Pro Fac Fac Ext Cet Arc Hub Res Res DSF Acc Com Machines Accessed 16 | . 1 2 . . . . 1 . 4 . 2 . . 1 1 . . 1 . 2 1 Terminals 6 | . 1 2 . . . . . . . . . . . 1 . . . 1 . . 1 Fabricators 2 | . . . . . . . . . . . 1 . . . . . . . . 1 . Repair Stations . | . . . . . . . . . . . . . . . . . . . . . . Recycling Units 2 | . . . . . . . . . . . 1 . . . . . . . . 1 . Scanalyzers . | . . . . . . . . . . . . . . . . . . . . . . Garrison Access . | . . . . . . . . . . . . . . . . . . . . . . Total Hacks 63 | . 2 4 . . . . 1 . 30 . 5 . . 2 13 . . 1 . 4 1 Successful 49 | . 2 1 . . . . 1 . 30 . 1 . . . 13 . . 1 . . . Failed 14 | . . 3 . . . . . . . . 4 . . 2 . . . . . 4 1 Catastrophic 8 | . . 2 . . . . . . . . 1 . . 1 . . . . . 4 . Database Lockouts . | . . . . . . . . . . . . . . . . . . . . . . Manual 90 | . . 2 . . . 9 . . . . 7 . 3 2 . 8 3 3 . 20 33 Terminals 10 | . 2 4 . . . . . . . . . . . 2 . . . 1 . . 1 Fabricators 4 | . . . . . . . . . . . 2 . . . . . . . . 2 . Repair Stations . | . . . . . . . . . . . . . . . . . . . . . . Recycling Units 5 | . . . . . . . . . . . 3 . . . . . . . . 2 . Scanalyzers . | . . . . . . . . . . . . . . . . . . . . . . Garrison Access . | . . . . . . . . . . . . . . . . . . . . . . Terminal Hacks 48 | . 2 1 . . . . 1 . 30 . . . . . 13 . . 1 . . . Record 25 | . . . . . . . 1 . 11 . . . . . 13 . . . . . . Part Schematic 10 | . . . . . . . . . 10 . . . . . . . . . . . . Robot Schematic 6 | . . . . . . . . . 6 . . . . . . . . . . . . Prototype ID Bank 3 | . . . . . . . . . 3 . . . . . . . . . . . . Open DSF 1 | . . . . . . . . . . . . . . . . . . 1 . . . Branch Access Points 2 | . 1 1 . . . . . . . . . . . . . . . . . . . Zone Layout 1 | . 1 . . . . . . . . . . . . . . . . . . . . Fabricator Hacks . | . . . . . . . . . . . . . . . . . . . . . . Repair Station Hacks . | . . . . . . . . . . . . . . . . . . . . . . Recycling Unit Hacks 1 | . . . . . . . . . . . 1 . . . . . . . . . . Retrieve Components 1 | . . . . . . . . . . . 1 . . . . . . . . . . Scanalyzer . | . . . . . . . . . . . . . . . . . . . . . . Garrison Access Hacks . | . . . . . . . . . . . . . . . . . . . . . . Unauthorized Hacks . | . . . . . . . . . . . . . . . . . . . . . . Terminals . | . . . . . . . . . . . . . . . . . . . . . . Fabricators . | . . . . . . . . . . . . . . . . . . . . . . Repair Stations . | . . . . . . . . . . . . . . . . . . . . . . Recycling Units . | . . . . . . . . . . . . . . . . . . . . . . Scanalyzers . | . . . . . . . . . . . . . . . . . . . . . . Garrison Access . | . . . . . . . . . . . . . . . . . . . . . . Data Cores Recovered . | . . . . . . . . . . . . . . . . . . . . . . Used . | . . . . . . . . . . . . . . . . . . . . . . Hacking Detections 6 | . . 1 . . . . . . . . 1 . . 2 . . . . . 2 . Full Trace Events 3 | . . 1 . . . . . . . . 1 . . . . . . . . 1 . Feedback Events 1 | . . 1 . . . . . . . . . . . . . . . . . . . Corruption 1 | . . 1 . . . . . . . . . . . . . . . . . . . Feedback Blocked . | . . . . . . . . . . . . . . . . . . . . . . Robot Schematics Acquired 6 | . . . . . . . . . 6 . . . . . . . . . . . . Robots Built . | . . . . . . . . . . . . . . . . . . . . . . Authchips . | . . . . . . . . . . . . . . . . . . . . . . Time . | . . . . . . . . . . . . . . . . . . . . . . Total Robot Build Rating . | . . . . . . . . . . . . . . . . . . . . . . Part Schematics Acquired 32 | . . . . . . . . . 10 . . . . . . . . . . 11 11 Parts Built . | . . . . . . . . . . . . . . . . . . . . . . Authchips . | . . . . . . . . . . . . . . . . . . . . . . Time . | . . . . . . . . . . . . . . . . . . . . . . Total Part Build Rating . | . . . . . . . . . . . . . . . . . . . . . . Parts Repaired . | . . . . . . . . . . . . . . . . . . . . . . Time . | . . . . . . . . . . . . . . . . . . . . . . Parts Recycled . | . . . . . . . . . . . . . . . . . . . . . . Recycled Matter . | . . . . . . . . . . . . . . . . . . . . . . Retrieved Matter . | . . . . . . . . . . . . . . . . . . . . . . Retrieved Components 7 | . . . . . . . . . . . 7 . . . . . . . . . . Parts Scanalyzed . | . . . . . . . . . . . . . . . . . . . . . . Part Schematics Acquired . | . . . . . . . . . . . . . . . . . . . . . . Parts Damaged . | . . . . . . . . . . . . . . . . . . . . . . Bothacking | -11 -10 -9 -9 -7 -6 -6 -6 -6 -6 -5 -5 -4 -4 -4 -4 -4 -3 -2 -2 -1 -1 ------------ Run | Yrd Mat Mat Min Zio Pro Fac Low Low Dat Pro Fac Fac Ext Cet Arc Hub Res Res DSF Acc Com Used RIF Installer . | . . . . . . . . . . . . . . . . . . . . . . Robots Hacked . | . . . . . . . . . . . . . . . . . . . . . . Non-combat . | . . . . . . . . . . . . . . . . . . . . . . Combat . | . . . . . . . . . . . . . . . . . . . . . . Robot Hacks Applied . | . . . . . . . . . . . . . . . . . . . . . . Relay Couplers Released . | . . . . . . . . . . . . . . . . . . . . . . Fabnet Peak Effective % . | . . . . . . . . . . . . . . . . . . . . . . Robots Rewired 16 | . . . . . . . . . . . . . 16 . . . . . . . . Allies Hacked . | . . . . . . . . . . . . . . . . . . . . . . Hacks Repelled . | . . . . . . . . . . . . . . . . . . . . . . Allies | -11 -10 -9 -9 -7 -6 -6 -6 -6 -6 -5 -5 -4 -4 -4 -4 -4 -3 -2 -2 -1 -1 -------- Run | Yrd Mat Mat Min Zio Pro Fac Low Low Dat Pro Fac Fac Ext Cet Arc Hub Res Res DSF Acc Com Total Allies 43 | . . . . 6 . . . . . 1 3 . 26 . . . 2 . . 5 . Largest Group 20 | . . . . 6 6 . . . . 1 3 3 20 14 7 4 2 . . 3 . Highest-Rated Group 852 | . . . . 203 203 . . . . 96 210 210 852 636 396 150 206 . . 244 . Highest-Rated Ally 159 | . . . . 41 41 . . . . 96 70 70 159 159 159 51 103 . . 122 . Zionite Dispatches 4 | . . . . . . . . . . . 1 . . . . . 1 . . 2 . Heavy 2 | . . . . . . . . . . . . . . . . . 1 . . 1 . Light 1 | . . . . . . . . . . . 1 . . . . . . . . . . Zionite Resupply 1 | . . . . . . . . . . . . . . . . . . . . 1 . Total Orders 5 | . . . . . . . . . . . . . . . . . 4 . . 1 . DROP 1 | . . . . . . . . . . . . . . . . . . . . 1 . EXPLORE 4 | . . . . . . . . . . . . . . . . . 4 . . . . Ally Attacks 316 | . . . . . 30 . . . . 12 . . 150 57 14 9 13 . . 31 . Total Damage 9876 | . . . . . 559 . . . . 249 . . 4439 1475 296 202 845 . . 1811 . Kills 58 | . . . . . 5 . . . . 1 . . 25 11 2 1 4 . . 9 . Allies Corrupted 3 | . . . . . 2 . . . . . . . . . . 1 . . . . . Allies Melted 2 | . . . . . . . . . . . . . . . . 1 . . . 1 . Intel | -11 -10 -9 -9 -7 -6 -6 -6 -6 -6 -5 -5 -4 -4 -4 -4 -4 -3 -2 -2 -1 -1 ------- Run | Yrd Mat Mat Min Zio Pro Fac Low Low Dat Pro Fac Fac Ext Cet Arc Hub Res Res DSF Acc Com Robot Analysis Total . | . . . . . . . . . . . . . . . . . . . . . . Derelict Logs Recovered 8 | . . . . 1 3 . 1 2 . 1 . . . . . . . . . . . Drone Launches 4 | . . . . . . . . . . . . . . . . . 4 . . . . Drone Recoveries 2 | . . . . . . . . . . . . . . . . . 2 . . . . Decoded 0b10 Intel 178 | . . . . . . 33 . . . . 61 23 39 . . 22 . . . . . Traps 5 | . . . . . . 5 . . . . . . . . . . . . . . . Items 172 | . . . . . . 27 . . . . 61 23 39 . . 22 . . . . . Garrisons 1 | . . . . . . 1 . . . . . . . . . . . . . . . Zionite Intel Received 14 | . . . . . . 2 . . . . 1 . . . . 1 . . . 3 7 Branch Access 4 | . . . . . . 1 . . . . 1 . . . . . . . . 1 1 Emergency Access 1 | . . . . . . . . . . . . . . . . . . . . . 1 Guard Positions 1 | . . . . . . . . . . . . . . . . . . . . . 1 Prototype Schematics 2 | . . . . . . . . . . . . . . . . . . . . 1 1 Unaware Analyses 1 | . . . . . . . . . . . . . . . . . . . . . 1 Trap Installations 1 | . . . . . . 1 . . . . . . . . . . . . . . . Active Terminals 2 | . . . . . . . . . . . . . . . . 1 . . . . 1 Active Garrisons 2 | . . . . . . . . . . . . . . . . . . . . 1 1 Exploration | -11 -10 -9 -9 -7 -6 -6 -6 -6 -6 -5 -5 -4 -4 -4 -4 -4 -3 -2 -2 -1 -1 ------------- Run | Yrd Mat Mat Min Zio Pro Fac Low Low Dat Pro Fac Fac Ext Cet Arc Hub Res Res DSF Acc Com Turns Passed 10011 | 15 56 62 8 1424 1113 390 156 70 74 1085 1015 345 1429 229 226 392 1071 153 62 372 264 Spaces Moved 8377 | 23 112 153 23 1250 750 244 361 195 182 755 536 248 821 105 141 274 506 207 55 785 651 Core 935 | 23 69 . . 67 550 . 1 . . . . . . . . 47 146 . 31 . 1 Treads 280 | . . . . . 104 162 . . . 1 . . . . . . 9 . 4 . . Legs 3307 | . . . . 326 . . . . . 675 536 248 821 105 141 202 253 . . . . Wheels . | . . . . . . . . . . . . . . . . . . . . . . Hover 85 | . . . . . . . 3 . . 6 . . . . . . 76 . . . . Flight 3770 | . 43 153 23 857 96 82 357 195 182 73 . . . . . 25 22 207 20 785 650 Fastest Speed 17 | 50 32 29 32 29 29 29 29 35 35 35 100 108 108 120 120 40 32 30 30 28 17 Average Speed 87 | 50 43 31 32 97 136 125 32 35 35 122 133 108 117 120 120 100 97 31 50 32 26 Slowest Speed 250 | 50 50 32 32 150 160 209 112 35 35 250 185 108 186 120 120 190 250 32 160 109 106 Overloaded Moves . | . . . . . . . . . . . . . . . . . . . . . . Propulsion Burnouts . | . . . . . . . . . . . . . . . . . . . . . . Robots Hopped 53 | . . . . . . . . . . . . . . . . 8 2 . . 26 17 Cave-ins Triggered . | . . . . . . . . . . . . . . . . . . . . . . Exploration Rate (%) 39 | 3 26 25 12 88 86 5 60 38 73 70 16 5 88 54 85 30 14 4 47 22 28 Regions Visited 21 Branch Regions 12 Pre-discovered Areas 4 | . . . . 1 1 . 1 . 1 . . . . . . . . . . . . Known Exits Taken 14 | . . 1 . . . 1 1 1 1 1 1 1 1 1 1 1 . 1 . 1 . Unknown Exits Taken 6 | 1 1 . 1 1 1 . . . . . . . . . . . 1 . . . . Scrap Searched 9 | . . . . 2 1 . . 1 . 5 . . . . . . . . . . . Spaces Dug 44 | . . . . 5 . 4 1 . 4 . 7 4 . . 2 . 8 3 . 6 . Terrain Destroyed 468 | . . . . 5 . 4 1 . 4 9 56 4 . 2 3 360 10 3 . 7 . Melee 26 | . . . . 5 . 4 1 . 4 . 7 2 . . . . . 3 . . . Projectile 66 | . . . . . . . . . . 9 18 2 . 2 3 15 10 . . 7 . AOE 376 | . . . . . . . . . . . 31 . . . . 345 . . . . . Terrain Rammed . | . . . . . . . . . . . . . . . . . . . . . . Walls Destroyed . | . . . . . . . . . . . . . . . . . . . . . . Machines Disabled . | . . . . . . . . . . . . . . . . . . . . . . Actions | -11 -10 -9 -9 -7 -6 -6 -6 -6 -6 -5 -5 -4 -4 -4 -4 -4 -3 -2 -2 -1 -1 --------- Run | Yrd Mat Mat Min Zio Pro Fac Low Low Dat Pro Fac Fac Ext Cet Arc Hub Res Res DSF Acc Com Total 10244 | 24 118 167 22 1394 820 298 377 195 185 847 717 302 1256 183 181 309 923 283 76 861 706 Wait 671 | . . 5 . 90 49 1 . . . 7 44 18 71 56 17 3 209 58 . 33 10 Move 8259 | 22 111 152 22 1249 749 243 360 194 181 754 535 247 820 104 140 261 501 206 54 734 620 Hop 44 | . . . . . . . . . . . . . . . . 4 2 . . 24 14 Pick Up 97 | . 2 . . 7 . 4 . . . 4 18 4 13 2 . . 22 5 4 7 5 Fast Attach 177 | 2 3 2 . 7 6 12 2 1 . 22 15 5 6 3 2 1 44 4 2 23 15 Attach 60 | . . 4 . 1 . 7 . . . 4 3 2 . . . 7 17 2 1 9 3 Detach 21 | . . 4 . . . 4 . . . 2 . . . . . . 2 1 1 6 1 Swap 63 | . . . . . 2 2 . . . 4 11 7 16 1 5 1 8 . . 1 5 Drop 155 | . 2 . . 6 3 9 1 . . 13 18 8 31 4 7 1 22 1 3 13 13 Fire 276 | . . . . . . . . . . 25 64 9 24 13 10 31 80 . . 11 9 Melee 112 | . . . . 34 11 16 12 . 4 12 8 2 . . . . . 6 7 . . Ram 2 | . . . . . . . 2 . . . . . . . . . . . . . . Kick 8 | . . . . . . . . . . . 1 . 1 . . . 6 . . . . Crush 14 | . . . . . . . . . . . . . . . . . 10 . 4 . . Escape Stasis 21 | . . . . . . . . . . . . . 10 . . . . . . . 11 Rewire 264 | . . . . . . . . . . . . . 264 . . . . . . . . Trap . | . . . . . . . . . . . . . . . . . . . . . . Miscellaneous . | . . . . . . . . . . . . . . . . . . . . . . Route ------- -11/Scrapyard -10/Materials (discovered 2 exits: *Mat / Min) -9/Materials -9/Mines -7/Zion -6/Proximity Caves -6/Factory (discovered 2 exits: *Low x2) -6/Lower Caves -6/Lower Caves -6/Data Miner -5/Proximity Caves -5/Factory (discovered 4 exits: *Fac x2 / Upp x2) -4/Factory -4/Extension (discovered 2 exits: *Res / *Cet) -4/Cetus -4/Archives (discovered 3 exits: *Res / *Hub x2) -4/Hub_04(d) -3/Research -2/Research -2/DSF -1/Access -1/Command History --------- Turn | Location | Event 2 | -11/Scrapyard | Met Revision 17 10 | -11/Scrapyard | Discovered new exit (range 13) 16 | -11/Scrapyard | Entered Materials 29 | -10/Materials | Identified exit to Mines 66 | -10/Materials | Discovered new exit (range 16) 72 | -10/Materials | Entered another Materials area 72 | -9/Materials | Evolved 2 slots: Propulsion x2 123 | -9/Materials | Discovered new exit (range 16) 131 | -9/Materials | Identified exit to Mines 134 | -9/Materials | Entered Mines 140 | -9/Mines | A Derelict revealed a hidden shortcut to a safe place 142 | -9/Mines | Entered Zion 154 | -7/Zion | Gained Derelict followers 155 | -7/Zion | Discovered new exit (range 15) 162 | -7/Zion | System corruption cleaned by Quarantine Array 173 | -7/Zion | Learned 4 Factory zone layouts 199 | -7/Zion | Learned Factory emergency access door positions 329 | -7/Zion | Learned location of Armory (-3) 376 | -7/Zion | Found CR-A16's Pointy Stick 404 | -7/Zion | Received a hallucinogenic algorithm 469 | -7/Zion | Build established: Mutant 733 | -7/Zion | Imprinted 735 | -7/Zion | Declared Zion's savior 1028 | -7/Zion | Given A8's code to call for help 1250 | -7/Zion | Build established: Derelict-Gladiator 1566 | -7/Zion | Entered Proximity Caves 1566 | -6/Proximity Caves | Accompanied by 6 allies 1568 | -6/Proximity Caves | Attracted the attention of an 0b10 checkpoint 1598 | -6/Proximity Caves | Spotted B-75 Beast 1635 | -6/Proximity Caves | Core integrity fell below 50% 1640 | -6/Proximity Caves | Destroyed B-75 Beast 1650 | -6/Proximity Caves | Spotter reported a threat 1663 | -6/Proximity Caves | Spotter reported a threat 1668 | -6/Proximity Caves | Lost 4 parts (4n) 1716 | -6/Proximity Caves | Spotter reported a threat 1894 | -6/Proximity Caves | Spotter reported a threat 1949 | -6/Proximity Caves | Learned Factory emergency access door positions 2173 | -6/Proximity Caves | Learned Factory terminal intel 2324 | -6/Proximity Caves | P-60 Hacker assimilated allied 9H-FMB(M) 2386 | -6/Proximity Caves | Lost 3 allies 2448 | -6/Proximity Caves | Core integrity fell below 20% 2507 | -6/Proximity Caves | System corruption reached 10% 2654 | -6/Proximity Caves | Discovered new exit (range 15) 2679 | -6/Proximity Caves | Entered Factory 2679 | -6/Factory | Evolved 6 slots: Power x1, Utility x4, Weapon x1 2680 | -6/Factory | Identified exit to Lower Caves 2682 | -6/Factory | Loaded intel: 26 terminal locations 2727 | -6/Factory | Retrieved Zion intel report: Branch Access 3024 | -6/Factory | Retrieved Zion intel report: Trap Installations 3029 | -6/Factory | Search patrols dispatched 3069 | -6/Factory | Entered Lower Caves 3199 | -6/Lower Caves | Lost 10 parts (1p4n3u2w) 3212 | -6/Lower Caves | Discovered new exit (range 11) 3220 | -6/Lower Caves | Found Alien Artifact 3220 | -6/Lower Caves | Identified Dimensional Node Initializer 3220 | -6/Lower Caves | Initialized slip node 3224 | -6/Lower Caves | Identified exit to Lower Caves 3225 | -6/Lower Caves | Entered another Lower Caves area 3226 | -6/Lower Caves | Encountered a Warlord checkpoint 3228 | -6/Lower Caves | Learned Factory stockpile data 3259 | -6/Lower Caves | Learned location of 1 exit from Factory 3293 | -6/Lower Caves | Discovered new exit (range 7) 3295 | -6/Lower Caves | Identified exit to Data Miner 3295 | -6/Lower Caves | Entered Data Miner 3295 | -6/Data Miner | Discovered new exit (range 6) 3303 | -6/Data Miner | Identified exit to Proximity Caves 3308 | -6/Data Miner | Met Data Miner 3315 | -6/Data Miner | Learned location of Section 7 (-2) 3315 | -6/Data Miner | Acquired the access code to Warlord's prototype stash 3322 | -6/Data Miner | Received God Mode back door access code from Data Miner 3369 | -6/Data Miner | Entered Proximity Caves 3401 | -5/Proximity Caves | Escorted by Enhanced Grunt 3451 | -5/Proximity Caves | Found Prototype Device 3451 | -5/Proximity Caves | Identified Exp. Thermal Shield 3518 | -5/Proximity Caves | Spotted B-75 Beast 3636 | -5/Proximity Caves | Core integrity fell below 50% 3651 | -5/Proximity Caves | Destroyed B-75 Beast 3670 | -5/Proximity Caves | Lost 4 parts (1u3w) 3873 | -5/Proximity Caves | Attracted the attention of an 0b10 checkpoint 3950 | -5/Proximity Caves | Build established: Scavenger-Mutant 4037 | -5/Proximity Caves | System corruption reached 10% 4152 | -5/Proximity Caves | Identified exit to Factory 4454 | -5/Proximity Caves | Entered Factory 4454 | -5/Factory | Evolved 2 slots: Power x1, Utility x1 4455 | -5/Factory | Identified exit to Factory 4688 | -5/Factory | Lost 4 parts (2p1u1w) 4985 | -5/Factory | Build established: Scavenger-Tank 5173 | -5/Factory | Discovered exit to Factory (range 5) 5175 | -5/Factory | Lost 3 parts (1n1u1w) 5406 | -5/Factory | Retrieved Zion intel report: Branch Access 5406 | -5/Factory | Identified exit to Upper Caves 5407 | -5/Factory | Zion Light squad teleported in 5469 | -5/Factory | Entered another Factory area 5469 | -4/Factory | Accompanied by 3 allies 5469 | -4/Factory | Evolved 2 slots: Propulsion x1, Utility x1 5491 | -4/Factory | Build established: Scavenger-Gunner 5551 | -4/Factory | Discovered new exit (range 10) 5582 | -4/Factory | Lost 3 allies 5582 | -4/Factory | Identified exit to Extension 5814 | -4/Factory | Entered Extension 5855 | -4/Extension | Rescued a captive Derelict 5856 | -4/Extension | Rescued a captive Derelict 5929 | -4/Extension | Rescued a captive Derelict 5930 | -4/Extension | Rescued a captive Derelict 6193 | -4/Extension | Build established: Scavenger-Tank 6422 | -4/Extension | Rescued a captive Derelict 6423 | -4/Extension | Rescued a captive Derelict 6613 | -4/Extension | Build established: Commander-Tank 6718 | -4/Extension | Spotted B-86 Titan 6728 | -4/Extension | Allies destroyed B-86 Titan 6736 | -4/Extension | Spotted B-86 Titan 6747 | -4/Extension | Destroyed B-86 Titan 6777 | -4/Extension | Lost 4 allies 6801 | -4/Extension | Rescued A7 6862 | -4/Extension | Rescued a captive Derelict 6863 | -4/Extension | Rescued a captive Derelict 6872 | -4/Extension | Rescued a captive Derelict 7037 | -4/Extension | Terminal network hard line cut 7199 | -4/Extension | Discovered new exit (range 10) 7201 | -4/Extension | Discovered new exit (range 6) 7231 | -4/Extension | Identified exit to Research 7239 | -4/Extension | Identified exit to Cetus 7243 | -4/Extension | Entered Cetus 7243 | -4/Cetus | Accompanied by 14 allies (A7) 7248 | -4/Cetus | Acquired a Cetus Manufacturing Module code from A7 7252 | -4/Cetus | Spotted Cetus Guard 7255 | -4/Cetus | Spotted Cetus Guard 7257 | -4/Cetus | Spotted Cetus Guard 7257 | -4/Cetus | Spotted Cetus Guard 7269 | -4/Cetus | Destroyed Cetus Guard 7278 | -4/Cetus | Allies destroyed Cetus Guard 7278 | -4/Cetus | Destroyed Cetus Guard 7281 | -4/Cetus | Destroyed Cetus Guard 7298 | -4/Cetus | Cetus Manufacturing Module disabled 7326 | -4/Cetus | Lost 7 allies 7353 | -4/Cetus | Failed to start Cetus Manufacturing Module 7406 | -4/Cetus | Discovered new exit (range 16) 7422 | -4/Cetus | Identified exit to Archives 7472 | -4/Cetus | Entered Archives 7472 | -4/Archives | Accompanied by 7 allies (A7) 7535 | -4/Archives | Unable to access archive contents 7540 | -4/Archives | Discovered new exit (range 15) 7547 | -4/Archives | Unable to access archive contents 7572 | -4/Archives | Unable to access archive contents 7577 | -4/Archives | Discovered exit to Research (range 15) 7582 | -4/Archives | Build established: Scavenger-Tank 7592 | -4/Archives | Discovered new exit (range 16) 7623 | -4/Archives | Identified exit to Hub_04(d) 7698 | -4/Archives | Entered Hub_04(d) 7698 | -4/Hub_04(d) | Accompanied by 4 allies 7698 | -4/Hub_04(d) | Discovered exit to Research (range 11) 7785 | -4/Hub_04(d) | Retrieved Zion intel report: Active Terminals 7901 | -4/Hub_04(d) | Lost 3 allies 7980 | -4/Hub_04(d) | Network Hub disabled 7981 | -4/Hub_04(d) | Spotted Lightning 7981 | -4/Hub_04(d) | Spotted Lightning 7981 | -4/Hub_04(d) | Spotted Lightning 7982 | -4/Hub_04(d) | System corruption reached 10% 7986 | -4/Hub_04(d) | Network Hub disabled 8018 | -4/Hub_04(d) | Spotted Lightning 8031 | -4/Hub_04(d) | System corruption reached 30% 8040 | -4/Hub_04(d) | Spotted Lightning 8046 | -4/Hub_04(d) | Spotted Lightning 8055 | -4/Hub_04(d) | Released all parts (3) 8057 | -4/Hub_04(d) | Spotted Lightning 8057 | -4/Hub_04(d) | Spotted Lightning 8059 | -4/Hub_04(d) | Core integrity fell below 50% 8068 | -4/Hub_04(d) | Core integrity fell below 20% 8090 | -4/Hub_04(d) | Entered Research 8090 | -3/Research | Evolved 2 slots: Utility x1, Weapon x1 8103 | -3/Research | Lost 22 parts (2p8n8u4w) 8341 | -3/Research | Build established: Mutant 8501 | -3/Research | Zion Heavy squad teleported in 8503 | -3/Research | Lost 7 parts (1p3n3w) 8742 | -3/Research | Lost 13 parts (3p3n4u3w) 8840 | -3/Research | First assault squad dispatched 8971 | -3/Research | Spotted B-86 Titan 9068 | -3/Research | Lost 12 parts (3p4n2u3w) 9107 | -3/Research | Core integrity fell below 50% 9130 | -3/Research | System corruption reached 10% 9150 | -3/Research | Discovered new exit (range 15) 9161 | -3/Research | Entered another Research area 9161 | -2/Research | Evolved 2 slots: Propulsion x1, Utility x1 9184 | -2/Research | Lost 8 parts (2n3u3w) 9311 | -2/Research | Identified exit to DSF 9314 | -2/Research | Entered DSF 9328 | -2/DSF | Additional patrols routed to DSF 9367 | -2/DSF | Discovered new exit (range 16) 9376 | -2/DSF | Entered Access 9376 | -1/Access | Evolved 2 slots: Propulsion x1, Utility x1 9390 | -1/Access | Lost 7 parts (2n4u1w) 9400 | -1/Access | Spotted B-99 Colossus 9425 | -1/Access | Zion Heavy squad teleported in 9554 | -1/Access | Retrieved Zion intel report: Branch Access 9554 | -1/Access | Identified exit to Command 9624 | -1/Access | Retrieved Zion intel report: Active Garrisons 9652 | -1/Access | Spotted B-99 Colossus 9652 | -1/Access | Spotted B-99 Colossus 9656 | -1/Access | Retrieved Zion intel report: Prototype Schematics 9657 | -1/Access | Zion Zionite Resupply teleported in 9660 | -1/Access | Enhanced Grunt warped into view, answering call for help 9664 | -1/Access | Enhanced Grunt warped into view, answering call for help 9665 | -1/Access | P-80 Master assimilated allied ZE-P1R(A) 9718 | -1/Access | Found Prototype Device 9718 | -1/Access | Identified Exp. Force Field 9720 | -1/Access | Found Exp. Force Field 9748 | -1/Access | Entered Command 9779 | -1/Command | Lost 5 parts (1p1n1u2w) 9806 | -1/Command | Retrieved Zion intel report: Active Terminals 9810 | -1/Command | Retrieved Zion intel report: Emergency Access 9855 | -1/Command | Retrieved Zion intel report: Prototype Schematics 9918 | -1/Command | Retrieved Zion intel report: Unaware Analyses 9923 | -1/Command | Retrieved Zion intel report: Branch Access 9937 | -1/Command | Retrieved Zion intel report: Active Garrisons 9963 | -1/Command | Lost 3 parts (2u1w) 9964 | -1/Command | Spotted B-99 Colossus 9969 | -1/Command | Found Enh. Force Lance 9989 | -1/Command | Retrieved Zion intel report: Guard Positions 9993 | -1/Command | Spotted Alpha 7 9993 | -1/Command | Spotted Alpha 7 9993 | -1/Command | Spotted Striker 9993 | -1/Command | Spotted Striker 9993 | -1/Command | Spotted Executioner 9993 | -1/Command | Spotted Executioner 9993 | -1/Command | Spotted Executioner 9993 | -1/Command | Spotted Executioner 9994 | -1/Command | Spotted B-99 Colossus 9996 | -1/Command | Spotted B-99 Colossus 10005 | -1/Command | Core integrity fell below 50% 10010 | -1/Command | Core integrity fell below 20% 10012 | -1/Command | Destroyed by P-80 Master with Gamma Rifle Last Messages --------------- 10009_ Slug penetrates Wall. 10009_ Penetrated by Slug. 10009_ Triggered Stasis Trap. 10009_ A bubble of rippling energy engulfs the area. 10009_ Field strength at 94. 10009_ Field strength at 88. 10010_ B-99 Colossus activates siege mode. 10010_ Penetrated by Slug. 10010_ Slug penetrates Wall. 10010_ Field strength at 49. 10011_ Slug penetrates Alpha 7. 10011_ Slug penetrates Wall. 10011_ Penetrated by Slug. 10011_ Slug penetrates Wall. 10011_ Slug penetrates Alpha 7. 10011_ Slug penetrates Wall. 10011_ Field strength at 9. 10012_ Wall collapses. 10012_ Stasis field depleted. Map ----- +----------------------------------------------------+ | ?????????????##+#??????? "" #######+## | | ?????????????# ?????? % ##### # | | ?????????????# ????? ! # | | ?????????????# ????? ! + | | ?????????????# ########## "#### ##### # | | ?????????????# # """" # #???# #???###### | | ?????????????# # """" ""#?#### #????????# | | ?????????????# + """" #???# #????????# | | ?????????????# # """" #???# #????????# | | ?????????????# # ##### #####+##????????# | | ?????????????# # + [ +?? ????????# | | ?????????????# # ######### ??????# | | ?????????????# # #???????# * "" #?????? | | ?????????????# # #???????# """#?????? | | ?????????????# ##########???????# R"#?????? | | ?????????????# #????????????????# ] """#?????? | | ?????????????# #????????????????# ???????? | | ?????????????# #????????????????# ??????? | | ?????????????# #????????????????##########??????? | | ?????????????# #????????????????????????????????? | | ?????????????# #??????????????????########??????? | | ?????????????# #?????????????????? ???????? | | ?????????????# #???????########## ???????? | | ?????????????# #??????##;%# # # # ????????? | | ????????????## ######## % E BB "???????????? | | ????????????# p ; @K E BB "???????????? | | ????????????# p ;%7K ^ ^"???????????? | | ????????????# %Y;^ 7 !%^ ^"???????????? | | ????????????# ; % E!^ "???????????? | | ???????????###+######### ^! ! ""??????????? | | ???????????# #?### #%[%; ;BB ???? | | ???????????# #???###;#####BB ???? | | ???????????# #?????###????? ???? | | ???????????# #??????????????#########????? | | ???????????# "" #???????????????????????????? | | ???????????# """" #???????????????????????????? | | ???????????# """" #???????????????????????????? | | ???????????# "" #???????????????????????????? | | ???????????# #???????????????????????????? | | ???????????# #???????????????????????????? | | ???????????# #???????????????????????????? | | ???????????# "" "" #???????????????????????????? | | ???????????# ""T"" #???????????????????????????? | | ???????????# """ #???????????????????????????? | | ???????????# ]#???????????????????????????? | | ???????????# = #???????????????????????????? | | ???????????###########???????????????????????????? | | ?????????????????????????????????????????????????? | | | | | +----------------------------------------------------+ Best States ------------- Heat Dissipation 101 Coolant Potential 100 Energy Generation 65 Energy Capacity 1030 Matter Stores 430 Matter Capacity 450 Sight Range 16 Terrain Scan Density 10 Jamming Range 14 Additional Mass Support 16 Base Temperature (-) 200 Corruption Block 20 Armor Coverage 400 Resistance: KI 30 Resistance: TH 30 Core Shielding 30 Evasion (%) 74 Targeting Accuracy 18 Melee Accuracy 8 Recoil Reduction 2 Energy Filtering 50 Particle Charging 25 Salvage Targeting 4 Defensive Hacking 12 Item Schematics ----------------- Combat Drone Bay | -6/Data Miner | Free Lgt. Regenerative Plating | -6/Data Miner | Free Enh. Armored Leg | -6/Data Miner | Free Imp. Energy Well | -6/Data Miner | Free Plasma Sword | -6/Data Miner | Free Field Propulsion Array | -6/Data Miner | Free Graphene Brace | -6/Data Miner | Free Hardcell Cannon | -6/Data Miner | Free Linear Gravjet | -6/Data Miner | Free Adv. Force Field | -6/Data Miner | Free Imp. Diametric Drive | -1/Access | Z-intel Mni. Smartbomb Launcher | -1/Access | Z-intel Exp. Core Analyzer | -1/Access | Z-intel Tri-rail Accelerator | -1/Access | Z-intel Exp. Heat Sink | -1/Access | Z-intel Hvy. Tesla Rifle | -1/Access | Z-intel Com. Linear Accelerator | -1/Access | Z-intel Exp. Thermal Generator | -1/Access | Z-intel Hvy. Wave Gun | -1/Access | Z-intel Cld. Antimatter Reactor | -1/Access | Z-intel Exp. Flexi-carbon Leg | -1/Access | Z-intel Exp. Target Analyzer | -1/Command | Z-intel Exp. Gyrokinetic Inverter | -1/Command | Z-intel Exp. Utility Shielding | -1/Command | Z-intel Imp. Matter Neutralizer | -1/Command | Z-intel Com. Mass Driver | -1/Command | Z-intel Exp. Hacking Suite | -1/Command | Z-intel Cld. Phase Gun | -1/Command | Z-intel Lrn. Phase Cannon | -1/Command | Z-intel Hdn. Centrium Wheel | -1/Command | Z-intel Exp. Energy Well | -1/Command | Z-intel Thermal Defense Suite | -1/Command | Z-intel Robot Schematics ------------------ Y-54 Guardian | -6/Data Miner | Free A-15 Conveyor | -6/Data Miner | Free B-60 Warrior | -6/Data Miner | Free S-27 Virus | -6/Data Miner | Free G-67 Veteran | -6/Data Miner | Free A-27 Freighter | -6/Data Miner | Free Fabricated ------------ Nothing Alien Tech Used ----------------- Dimensional Node Initializer Achievements -------------- Streaker Challenges ------------ None Game ------ Seed DrainedFireBeam Manual? 0 Play Time 02:45:52 Cumulative 57.4 hours Start 2024.04.06 @ 16:25:54 End 2024.04.07 @ 21:34:43 Sessions 3 Manual Loads 0 Difficulty Rogue Special Mode None Game No. 65 Rogue 65 Adventurer 0 Explorer 0 Win Type - Total 0 Types 0/0/0/0/0/0/0/0/0 Lore% 38 Gallery% 57 Achievement% 46 Wizard Run 0 Options --------- Layout 1 ASCII 0 Keyboard 0 Movement Numpad Keybinds 0 Fullscreen 1 Font 24/Smallcaps Map View 50x35 Zoom Use 0% Tactical HUD 1 Map Filters NONE Filters NONE Steam 1 RUN: 9103a6d4-2ff6-453b-8087-26a281431af4